Workbook

Sheet Cover Page
D1: Add company logo
N2: Version 22.3 30/11/22
B8: Add photo
N13: Notes:
N14: This template may require adjustments by individual operators to meet specific reporting requirements as defined in the site Permit(s)
B29: Annual Performance Report 2023
B31: Permit EPR/DP3932RS
B33: Hull Energy Production Facility
B35: Biomass UK No 1 LLP
B39: Year: | C39: 2023
B41: Address: | C41: King George Dock, The Port of Hull, Marfleet, Hull, HU9 5PS
B43: Tel: | C43: 01179 372 811
B45: Email: | C45: charlie.holmes@sol-environment.co.uk
B47: Prepared by: | C47: Charlie Holmes | F47: Position: | G47: Consultant
B49: Approved by: | C49: Randall Smith | F49: Position: | G49: Technical Manager
B51: Version: | C51: 1
B53: Issue Date: | C53: 2024-01-31

Sheet Contents
A1: =+'Cover Page'!$B$29 -> Annual Performance Report 2023 | E1: =+'Cover Page'!$B$33 -> Hull Energy Production Facility
A3: Contents | K3: Notes:
A4: Section | B4: Subject | H4: Page | K4: Section references and Page nos. to be inserted
B5: Facility Information | K5: Sections and Subjects may require adjustment by individual operators to meet specific reporting requirements as defined in the sites Permit(s)
B6: Operational Data
B7: Operational Summary
B8: Performance Form 1
B9: Energy Form 1
B10: Permit Compliance
B11: Improvements
B12: Public Liasion
B13: Carbon dioxide and nitrous oxide emissions
B14: Residue Quality
B15: Emissions to Water
B16: Emissions to Air (periodically monitored)
B17: Emissions to Air (continuously monitored)
B18: Hydrogen Chloride emissions
B19: Sulphur Dioxdie emsissions
B20: Oxides of Notrigen emissions
B21: Total Organic Carbon emissions
B22: Particulate Matter emissions
B23: Carbon Monoxide emissions
B24: Ammonia emissions
A27: Version Control
A28: Section | B28: Information | H28: Date
A35: Distribution
A36: Copy | B36: Name, Role | H36: No.
A45: This report is required under the Industrial Emissions Directive’s Article 55(2) requirements on reporting and public information on waste incineration plants and co-incineration plants, which require the operator to produce an annual report on the functioning and monitoring of the plant and make it available to the public.

Sheet Facility Info
A1: =+'Cover Page'!$B$29 -> Annual Performance Report 2023 | E1: =+'Cover Page'!$B$33 -> Hull Energy Production Facility
A3: Plant Description and Design | K3: Notes:
A5: The Hull Energy Production Facility is a renewable energy generation facility which has been designed to recover energy from pre-prepared mixed waste wood feedstocks using gasification. The gasification facility is an Advanced Thermal Treatment (ATT) process that will produce a combustible synthesis gas, which is then used to raise steam and generate electricity, through steam cycle turbine generation. The Advanced Thermal Treatment (ATT) plant is designed to process shredded mixed waste wood feedstocks to produce heat to raise steam in a conventional tube boiler for utilisation in a steam turbine for the production of renewable electricity with an export capacity up to 10MWe. The Installation has been designed to process approximately 86,400 tonnes of pre-processed non-hazardous mixed waste wood per annum. | K5: Include summary of plant design, design capacity, no. of combustion lines, electrical and heat capacity and any other general information that descibes the facility, its location and purpose
A20: Summary of Operational Processes and Procedures
A22: The principle components of the process comprise the following: Waste Acceptance and Reception: All waste wood is delivered directly into the fuel storage building via electrically operated roller shutter doors. When required, the waste is discharged onto the feedstock feed system, which delivers the waste into the gasification building. All waste is accepted in accordance to the sites waste acceptance procedures. Gasification: The feedstock feed system delivers the waste into the fluidised bed gasification system where the waste is combusted to produce a synthetic gas (syngas). The syngas is then combusted to produce a high temperature flue-gas. A steam boiler then recovers the heat from the combustion gases through the conversion into superheated steam. Electricity Generation: The superheated steam then passes to a Steam Turbine and Generator, which will export 10MWe (net) of renewable electricity onto the Local Distribution Network. Flue-Gas Cleaning: Flue gas cleaning and pollution control consists of urea injection for De-NOx, lime injection for acid gas neutralisation and activated carbon powder injection for absorption and removal of heavy metals, dioxins, VOCs and other harmful substances. The stream has a baghouse system, which is designed to have the capacity to remove submicron dust particles within anticipated emission limit values (ELV’s) stipulated by Chapter IV of the Industrial Emissions Directive (IED). The plant is operated in accordance with its Environmental Management System which is designed to meet the requirements of ISO14001:2004. | K22: Include summary of key processes and procedures such as (but not limited to); waste reception, control rooms, grate, bed and bolier, energy & heat generation, cooling systems, residue management, emission controls, health and safety systems, maintenance

Sheet Operational Data
A1: =+'Cover Page'!$B$29 -> Annual Performance Report 2023 | E1: =+'Cover Page'!$B$33 -> Hull Energy Production Facility
A3: Operational Data | K3: Notes:
A4: Plant Size | D4: tonnes pa | F4: MWth | H4: MWe | K4: * - RDF to include SRF
A5: No. of combustion lines | B5: 1 | D5: No. of Turbines: | F5: 1 | K5: ** - CHP plants only
K6: 2020 updates include; heat in MWh, water in Litres, NCV in MJ/kg
A7: Waste types received | B7: Unit | C7: Q1 | D7: Q2 | E7: Q3 | F7: Q4 | G7: Year Total | H7: %
A8: Household / Local Authority | B8: tonnes | G8: =SUM(C8:F8) -> 0 | H8: =IF(G8>0,G8/$G$18,"-") -> - | K8: Availabiity Definition: 'the availability of a line is to be calculated by the number of hours the line reported Continuously Monitored emission levels to the Regulator through the calendar year divided by the total number of hours in that year. The overall plant availability is calculated as the Mean of all lines in the plant. For clarity this includes periods of Other Than Normal Operating Conditions (OTNOC) and abnormal operation.' Rationale: The primary function of an Energy from Waste facility is the disposal of waste. It follows therefore that the availability of a plant is determined by the period of time a facility spends undertaking this activity.
A9: Commercial & Industrial | G9: =SUM(C9:F9) -> 0 | H9: -
A10: Hazardous | G10: 0 | H10: -
A11: Clinical | G11: 0 | H11: -
A12: Waste wood (biomass) | G12: 0 | H12: -
A13: Refuse Derived Fuel * - H'hold/LA | C13: 3997.58 | D13: 5199.364 | E13: 3695.39 | F13: 2560 | G13: =SUM(C13:F13) -> 15452.334 | H13: 1
A14: Refuse Derived Fuel * - C&I | G14: 0 | H14: -
A15: Other [Please specify] | G15: 0 | H15: -
A16: Other [Please specify]
A17: Other [Please specify]
A18: Total waste received | C18: =SUM(C8:C17) -> 3997.58 | D18: =SUM(D8:D17) -> 5199.364 | E18: =SUM(E8:E17) -> 3695.39 | F18: =SUM(F8:F17) -> 2560 | G18: =SUM(G8:G17) -> 15452.334 | H18: 1
A19: Rejected Waste | G19: =SUM(C19:F19) -> 0 | H19: =IF(G19>0,G19/$G$18,"-") -> -
A20: Unprocessed waste transferred out | G20: =SUM(C20:F20) -> 0 | H20: =IF(G20>0,G20/$G$18,"-") -> -
A21: Total waste combusted | C21: =C18-SUM(C19:C20) -> 3997.58 | D21: =D18-SUM(D19:D20) -> 5199.364 | E21: 3695.39 | F21: 2560 | G21: =SUM(C21:F21) -> 15452.334 | H21: =IF(G21>0,G21/$G$18,"-") -> 1
A23: Energy Useage / Export | B23: Unit | C23: Q1 | D23: Q2 | E23: Q3 | F23: Q4 | G23: Year Total | H23: KWh/te
A24: Power Generated | B24: MWh | C24: 4462 | D24: 3437 | E24: 4194 | F24: 2680 | G24: =SUM(C24:F24) -> 14773 | H24: =IF(G24>0,G24*1000/$G$21,"-") -> 956.0368032
A25: Power Exported | C25: 3512 | D25: 2776 | E25: 3344 | F25: 2173 | G25: =SUM(C25:F25) -> 11805 | H25: =IF(G25>0,G25*1000/$G$21,"-") -> 763.9622597
A26: Power Used on site | G26: =SUM(C26:F26) -> 0 | H26: =IF(G26>0,G26*1000/$G$21,"-") -> -
A27: Power Imported | C27: 767 | D27: 621 | E27: 701 | F27: 767 | G27: 2856 | H27: =IF(G27>0,G27*1000/$G$21,"-") -> 184.8264476
A28: Parasitic Load | B28: % | C28: =IF(C24>0,1-C25/(C24+C27),"-") -> 0.3283610633 | D28: =IF(D24>0,1-D25/(D24+D27),"-") -> 0.315919172 | E28: =IF(E24>0,1-E25/(E24+E27),"-") -> 0.3168539326 | F28: =IF(F24>0,1-F25/(F24+F27),"-") -> 0.3695967508 | G28: =IF(G24>0,1-G25/(G24+G27),"-") -> 0.3303647399
A29: Thermal Energy Produced ** | B29: MWh | G29: =SUM(C29:F29) -> 0 | H29: =IF(G29>0,G29*1000/$G$21,"-") -> -
A30: Thermal Energy Exported ** | G30: 0 | H30: =IF(G30>0,G30*1000/$G$21,"-") -> -
A31: R1 value (if applicable)
A33: Waste Disposal & Recovery | B33: Unit | C33: Q1 | D33: Q2 | E33: Q3 | F33: Q4 | G33: Year Total | H33: % inputs
A34: APC Residues - produced | B34: tonnes | C34: 871.31 | D34: 522.21 | E34: 912.68 | F34: 585.22 | G34: =SUM(C34:F34) -> 2891.42 | H34: =IF(G34>0,G34/$G$21,"-") -> 0.1871186579
A35: IBA - produced | C35: 564.09 | D35: 34.42 | G35: 598.51 | H35: =IF(G35>0,G35/$G$21,"-") -> 0.03873266006
A36: Metals recycling | C36: 15.72 | G36: =SUM(C36:F36) -> 15.72 | H36: 0.001017322043
A37: IBA - Recovered | C37: 324 | D37: 72 | E37: 6 | F37: 18 | G37: =SUM(C37:F37) -> 420 | H37: 0.02718035994
A38: Mixed Municipal | C38: 0 | D38: 144 | E38: 38 | F38: 12 | G38: 194 | H38: 0.01255473769
A39: Materials contaminated by hazardous substances | E39: 4.7 | G39: =SUM(C39:F39) -> 4.7 | H39: =IF(G39>0,G39/$G$21,"-") -> 0.0003041611707
A40: RDF Recovered | F40: 147.48 | G40: =SUM(C40:F40) -> 147.48 | H40: =IF(G40>0,G40/$G$21,"-") -> 0.009544189247
A41: Ferrous Metals | C41: 0 | D41: 0 | E41: 23.54 | F41: 8.96 | G41: 32.5 | H41: 0.002103242138
A43: Raw Material Usage | B43: Unit | C43: Q1 | D43: Q2 | E43: Q3 | F43: Q4 | G43: Year Total | H43: kg or Ltr /te
A44: Mains Water | B44: m3 | C44: 9625 | D44: 6512 | E44: 8057 | F44: 6982 | G44: =SUM(C44:F44) -> 31176 | H44: =IF(G44>0,G44/$G$21,"-") -> 2.017559289
A45: Other Water | B45: ltrs | G45: 0 | H45: =IF(G45>0,G45/$G$21,"-") -> -
A46: Ammonia | B46: kgs | G46: 0 | H46: -
A47: Urea | B47: kgs | C47: 9680 | D47: 19200 | E47: 56320 | F47: 0 | G47: =SUM(C47:F47) -> 85200 | H47: 5.513730159
A48: Activated Carbon | B48: kgs | G48: 0 | H48: -
A49: Lime / hydrated lime | B49: kgs | C49: 156840 | D49: 174200 | E49: 99600 | F49: 100484 | G49: 531124 | H49: 34.37176546
A50: Fuel oil | B50: kl | C50: 905.23 | D50: 273.68 | E50: 529.04 | F50: 579.15 | G50: 2287.1 | H50: 0.1480100029
A51: Gas | B51: cf | C51: 0 | D51: 0 | E51: 0 | F51: 0 | G51: 0
A52: Other | C52: 0 | D52: 0 | E52: 0 | F52: 0 | G52: 0
A54: Summary | B54: Line/Unit | C54: Q1 | D54: Q2 | E54: Q3 | F54: Q4 | G54: Year Total | J54: Hrs in year
A55: Availability of waste combustion by line, hrs | B55: =+B5 -> 1 | C55: 533 | D55: 376 | E55: 456 | F55: 297 | G55: =SUM(C55:F55) -> 1662 | H55: x % | J55: 8760
B56: 2 | G56: =SUM(C56:F56) -> 0 | H56: x %
B57: 3 | G57: 0 | H57: x %
B58: 4 | G58: 0 | H58: x %
B59: 5 | G59: =SUM(C59:F59) -> 0 | H59: x %
A60: Overall Availability, mean avg. of all lines, hrs | C60: 533 | D60: 376 | E60: 456 | F60: 297 | G60: =AVERAGE(G55:G59) -> 332.4 | H60: x %
A61: Hours of turbine operations, hrs | B61: 1 | G61: 0 | H61: x %
A62: Hours of turbine operations, hrs | B62: 2 | G62: 0 | H62: x %
A63: Hours of heat / steam export | G63: 0 | H63: =IF(B63>0,G62/J55,"n/a") -> n/a
A64: Net Calorific Value of waste | B64: MJ/kg | C64: 14 | D64: 14 | E64: 14 | F64: 14 | H64: -
A65: Abnormal Events | B65: qty. | G65: 0 | H65: =IF(G65>0,"yes","no") -> no
A66: Abnormal operation | B66: hours | G66: 0 | H66: =+(G66)/J55 -> 0
A67: Permit Breaches | B67: qty. | E67: 3 | G67: 3 | H67: =IF(G67>0,"yes","no") -> yes

Sheet Operational Summary
A1: =+'Cover Page'!$B$29 -> Annual Performance Report 2023 | E1: =+'Cover Page'!$B$33 -> Hull Energy Production Facility
A3: Summary of Plant Operations and Maintenance during the reporting year | K3: Notes:
A5: Following the completion of the fuel stock conversion and the adoption of SRF in Q4 2022, the plant has experienced intermittent operation, with running periods not exceeding three weeks. This is primarily attributed to the necessity for regular shutdowns to facilitate cleaning and de-slagging. As of Q2, an escalating issue has surfaced concerning the increased failure of the site's boiler tubes. This predicament is linked to the composition of the fuel stock, resulting in chlorine-induced corrosion and erosion. Consequently, the overall site availability has hovered around 20%, and running periods have averaged 10 days, punctuated by substantial boiler repairs during the interim. To rectify these technical challenges, a comprehensive solution named Project Phoenix has been initiated. This restorative project is anticipated to conclude in Q3 2024, aiming to address and resolve the identified issues and enhance the plant's operational efficiency | K5: Include summary of key operational and/or mainteanance activity undertaken in the year, such as any major component upgrades and/or replacements
A29: Summary of Residue Handling for the reporting year
A31: Monthly sampling of IBA and APCR commenced in January in line with Schedule 4 of the Environmental Permit. IBA and APCR is handled by a broker N+P, and taken to the Augean site in Peterborough. | K31: Include in here a summary of residue handling regimes and destinations

Sheet Perf. Form 1
A1: =+'Cover Page'!C39 -> 2023 | B1: Annual Reporting Performance Form 1
A3: =+'Cover Page'!B31 -> Permit EPR/DP3932RS | F3: Operator: | G3: =+'Cover Page'!B37:I37 -> 0
A4: Facility: | B4: =+'Cover Page'!B33:I33 -> Hull Energy Production Facility | F4: Form: | G4: Performance 1
A6: Reporting Period from: | D6: 2023-01-01 | F6: to: | G6: 2023-12-31
A8: =+A1 -> 2023 | B8: Annual Reporting of Waste Disposal and Recovery
A9: Waste Description | C9: Disposal Route(s) | E9: Disposal Tonnes | G9: Recovery Tonnes | I9: % / tonne of waste incinerated
A10: 1) Hazardous Wastes
A11: APC Residues | E11: 2891 | I11: =IF((E11+G11)>0,(E11+G11)/'Operational Data'!$G$21, "-") -> 0.1870914776
A12: IBA | E12: 599 | I12: =IF((E12+G12)>0,(E12+G12)/'Operational Data'!$G$21, "-") -> 0.03876437048
A13: Material contaminated by hazardous substances | E13: 5 | I13: =IF((E13+G13)>0,(E13+G13)/'Operational Data'!$G$21, "-") -> 0.0003235757135
I14: =IF((E14+G14)>0,(E14+G14)/'Operational Data'!$G$21, "-") -> -
A15: Total Hazardous Waste | E15: =SUM(E11:F14) -> 3495 | G15: =SUM(G11:H14) -> 0 | I15: =IF((E15+G15)>0,(E15+G15)/'Operational Data'!$G$21, "-") -> 0.2261794238
A17: 2) Non-Hazardous Wastes
A18: IBA | G18: 420 | I18: =IF((E18+G18)>0,(E18+G18)/'Operational Data'!$G$21, "-") -> 0.02718035994
A19: Ferrous Metal | G19: 33 | I19: =IF((E19+G19)>0,(E19+G19)/'Operational Data'!$G$21, "-") -> 0.002135599709
A20: RDF | G20: 147 | I20: =IF((E20+G20)>0,(E20+G20)/'Operational Data'!$G$21, "-") -> 0.009513125978
A21: Mixed Municipal | I21: =IF((E21+G21)>0,(E21+G21)/'Operational Data'!$G$21, "-") -> -
A22: Metals | G22: 16 | I22: =IF((E22+G22)>0,(E22+G22)/'Operational Data'!$G$21, "-") -> 0.001035442283
A23: Total Non-Hazardous Waste | E23: =SUM(E18:F22) -> 0 | G23: =SUM(G18:H22) -> 616 | I23: =IF((E23+G23)>0,(E23+G23)/'Operational Data'!$G$21, "-") -> 0.03986452791
A24: TOTAL WASTE | E24: =+E23+E15 -> 3495 | G24: =+G23+G15 -> 616 | I24: =IF((E24+G24)>0,(E24+G24)/'Operational Data'!$G$21, "-") -> 0.2660439517
A26: Operator’s comments :
A31: =+A1 -> 2023 | B31: Annual Reporting of Water and Other Raw Material Usage
A32: Raw Material | E32: Usage | G32: Unit | H32: Specific Useage | J32: Unit
A33: Mains Water | E33: =+'Operational Data'!G44 -> 31176 | G33: m3 | H33: =IF(E33>0,E33/'Operational Data'!$G$21,"-") -> 2.017559289 | J33: m3/te
A34: Total Water | E34: =+'Operational Data'!G45+'Operational Data'!G44 -> 31176 | G34: m3 | H34: =IF(E34>0,E34/'Operational Data'!$G$21,"-") -> 2.017559289 | J34: m3/te
A35: Urea / Ammonia | E35: 85200 | G35: kg | H35: =IF(E35>0,E35/'Operational Data'!$G$21,"-") -> 5.513730159 | J35: kg/te
A36: Activated Carbon | E36: =+'Operational Data'!G48 -> 0 | G36: kg | H36: =IF(E36>0,E36/'Operational Data'!$G$21,"-") -> - | J36: kg/te
A37: Lime / hydrated lime / Sodium Bicarb. | E37: =+'Operational Data'!G49 -> 531124 | G37: kg | H37: =IF(E37>0,E37/'Operational Data'!$G$21,"-") -> 34.37176546 | J37: kg/te
A39: Operator’s comments :
A43: =+A31 -> 2023 | B43: Annual Reporting of other performance indicators
A44: Parameter | C44: Results by Line
C45: A1 | D45: A2 | E45: A3 | F45: A4 | G45: A5 | I45: Turbine 1 | J45: Turbine 2
A46: Operating hours for the year, hours | C46: 1662 | I46: 1662
A47: Number of periods of abnormal operation, qty.
A48: Cumulative hours of abnormal operation for this year, hours
A50: Operator’s comments :
A54: Signed: | G54: Date:

Sheet Energy Form 1
A1: =+'Cover Page'!C39 -> 2023 | B1: Annual Reporting of Energy Usage/Export
A3: =+'Cover Page'!B31 -> Permit EPR/DP3932RS | F3: Operator: | G3: =+'Cover Page'!B37:I37 -> 0
A5: Facility: | B5: =+'Cover Page'!B33:I33 -> Hull Energy Production Facility | F5: Form: | G5: Energy 1
A7: Reporting Period from: | D7: =+'Perf. Form 1'!D6:E6 -> 2023-01-01 | F7: to: | G7: =+'Perf. Form 1'!G6:H6 -> 2023-12-31
A9: Energy Source | D9: Energy Usage | F9: Unit | G9: Specific Useage (KWh/tonne incinerated
A10: Electricity Produced | D10: =+'Operational Data'!G24 -> 14773 | F10: MWh | G10: =+'Operational Data'!H24 -> 956.0368032
A11: Electricity Imported | D11: =+'Operational Data'!G27 -> 2856 | F11: MWh | G11: =+'Operational Data'!H27 -> 184.8264476
A12: Electricity Exported | D12: =+'Operational Data'!G25 -> 11805 | F12: MWh | G12: =+'Operational Data'!H25 -> 763.9622597
A13: Gas Oil | F13: tonnes
A14: Steam/hot water exported | D14: =+'Operational Data'!G30 -> 0 | F14: GWh | G14: =+'Operational Data'!H30 -> -
A18: Operator’s comments :
A29: Signed: | G29: Date:

Sheet Permit Compliance
A1: =+'Cover Page'!$B$29 -> Annual Performance Report 2023 | E1: =+'Cover Page'!$B$33 -> Hull Energy Production Facility
A3: Summary of Permit Compliance
A5: Compliance with permit limits for continuously monitored pollutants
A7: The plant met its emission limits as shown in the table below:
A8: Substance | C8: Percentage time compliant during operation | L8: Notes:
C9: Half-hourly limit | F9: Daily limit | L9: Report to 2 decimal places, i.e. xx.xx% Please provide a brief summary of each notification or non-compliance in the table (rather than just referring to notifications that were sent to the Regulator).
A10: Particulates | C10: 1 | F10: 1
A11: Oxides of nitrogen | C11: 0.9998 | F11: 0.9998
A12: Sulphur dioxide | C12: 1 | F12: 1
A13: Carbon monoxide | C13: 99.98 % or 100% 95% of 10-min averages | F13: 0.9999
A14: Total organic carbon | C14: 1 | F14: 1
A15: Hydrogen chloride | C15: 0.9998 | F15: 0.9998
A16: Hydrogen fluoride | C16: 1 | F16: 1
C17: 0.9998 | F17: 0.9998
A19: Summary of any notifications or non-compliances under the permit
A20: Date | B20: Summary of notification or non-compliance [including Line/Reference] | E20: Reason | H20: Measures taken to prevent reoccurrence
A21: 2023-07-07 | B21: CO 1/2 hrly av ELV breached (112 mg/m3) | E21: Defective fuel feed and feed pipe blockages. | H21: Maintence and training
A22: 2023-07-18 | B22: HCI 1/2 hrly av ELV breached (73.08 mg/m3)
A23: 2023-07-18 | B23: HCI 1/2 hrly av ELV breached (81.55 mg/m3)
A24: 2023-07-18 | B24: HCI 1/2 hrly av ELV breached (248.03 mg/m3)
A25: 2023-07-18 | B25: HCI 1/2 hrly av ELV breached (138.21 mg/m3)
A26: 2023-07-18 | B26: HCI 1/2 hrly av ELV breached (126.47 mg/m3)
A27: 2023-07-18 | B27: HCI 1/2 hrly av ELV breached (140.98 mg/m3)
A28: 2023-07-18 | B28: HCI 1/2 hrly av ELV breached (102.65 mg/m3)
A29: 2023-07-18 | B29: HCI 1/2 hrly av ELV breached (185.21 mg/m3)
A30: 2023-07-18 | B30: HCI daily av ELV breached (33.95 60 mg/m3)
A31: 2023-07-19 | B31: CO 1/2 hrly av ELV breached (131 mg/m3)
A32: 2023-07-23 | B32: HCI daily av ELV breached (12.3 mg/m3)
A33: 2023-09-21 | B33: HCI 1/2 hrly av ELV breached (160 mg/m3)
A34: 2023-07-18 | B34: Failure to notify ELV breaches between (18/07 - 21/09) | E34: Management error | H34: Training
A36: Summary of any complaints received and actions to taken to resolve them.
A37: Date | B37: Summary of complaint [including Line/Reference] | E37: Reason * | H37: Measures taken to prevent reoccurrence
A38: 2023 | B38: None
E43: * including whether substantiated by the operator or the EA

Sheet Improvements
A1: =+'Cover Page'!$B$29 -> Annual Performance Report 2023 | E1: =+'Cover Page'!$B$33 -> Hull Energy Production Facility
A3: Summary of Plant Improvements
A5: Summary of any efficiency improvements that have been completed within the year.
A6: Installation of LED lights across site (reduce primary engery consumption). Optimized start up programme (reduced start up fuel).
A16: Summary of any permit improvement conditions that have been completed within the year and the resulting environmental benefits.
A17: None.
A27: Summary of any changes to the plant or operating techniques which required a variation to the permit and a summary of the resulting environmental impact.
A28: None.
A38: Summary of any other improvements made to the plant or planned to be made and a summary of the resulting environmental benefits.
A39: None.

Sheet Public Liasion
A1: =+'Cover Page'!$B$29 -> Annual Performance Report 2023 | E1: =+'Cover Page'!$B$33 -> Hull Energy Production Facility
A3: Details of Public & Stakeholder Liasion
A5: Summary of events held during the reporting year.
A6: Date | C6: Description
A7: 2023 | C7: None
A16: List of events planned for next year
A17: Date | C17: Description
A18: 2024 | C18: Not yet planned
A29: If you wish to be involved in the public liasion programme, please contact _________________

Sheet CO2 N2O
A1: =+'Cover Page'!$B$29 -> Annual Performance Report 2023 | C1: =+'Cover Page'!$B$33 -> Hull Energy Production Facility
A3: Carbon dioxide emissions and biogenic content of waste inputs | E3: Notes:
A5: Carbon dioxide emissions (all types of plant)
A6: Annual mass of carbon dioxide released | B6: x tonnes | C6: 19457.8
A7: Annual mass of carbon dioxide released per tonne of waste burned | B7: x tonnes | C7: 1.71
A8: Annual mass of carbon dioxide released per MWh of energy exported | B8: x tonnes | C8: 1.65
A9: Description of how annual carbon dioxide mass emission has been calculated | B9: Electricity improted mutliplied by uk elec 0.207074 =591.3 332.534475 Nox associated with buring waste. Fuel x EF - 2287.1 x 3.17 = 7250.1 11375 combusted waste x 0.992 =11284 19457.8 / 11375 = 1.71 - C02 per ton waste burned 19457.8 / exported power 11805 = 1.65 | E9: Note 1: Where available, data from CO2 CEMS should be used. Otherwise, where no CEMS data is available, a suitable emissions factor should be used based on the tonnage of waste burned e.g.0.992 tCO2/t waste as per Tolvik report 2021, or other justified emissions factor - refer to embedded Environment Agency guidance note above or updated version for suitable descriptive text.
A11: Nitrous oxide emissions (only plants which use ammonia or urea to abate NOx emissions)
A12: Annual mass emissions of nitrous oxide | B12: x tonnes | C12: 1.11
A13: Description of how annual nitrous oxide mass emission has been calculated | B13: Waste 11375t x 0.0981 = 1115.8875 / 1000 = 1.11t 1.11 x 298 = 332.534475 | E13: Note 2: Where available, data from N2O CEMS should be used, or if no CEMS data is available, from periodic monitoring. Otherwise, a suitable emissions factor should be used based on the tonnage of waste burned e.g. 0.0981 kgN20/t waste as per 2021 Pollution Inventory data for plants with urea-based SNCR - refer to embedded Environment Agency guidance note above or updated version for suitable descriptive text.
A14: Total annual carbon dioxide and nitrous oxide emissions as carbon dioxide equivalent (whereby 1 t nitrous oxide is equivalent to 298 t carbon dioxide) | B14: x tonnes CO2e | C14: 332.534475
A16: Biogenic fraction of the waste and biogenic CO2 emissions (only plants burning residual municipal waste, refuse derived fuel or solid recovered fuel)
A17: Yearly average biogenic percentage of the waste by net calorific value (NCV) | B17: x % | C17: 51.8
A18: Description of how biogenic NCV percentage has been calculated or estimated | B18: No sampling data avaliable, used averaging data from WRAP 2017. | E18: Note 3: Where available, data from waste sampling should be used; otherwise, an estimated figure with justification can be used, or a figure assumed on the basis of a national average e.g. 2017 WRAP data for residual waste of 51.8% biogenic energy content - refer to embedded Environment Agency guidance note above or updated version for suitable descriptive text, quoting standards where relevant.
A19: Percentage of total carbon dioxide emissions arising from biogenic waste | B19: x % | C19: 31.17
A20: Description of how percentage biogenic carbon dioxide emissions have been calculated | B20: 332.5 + 11284 = 11,616.5 x0.518 = 6017.3/ 19457.8 = 31 | E20: Note 4: Examples include direct measurement via C14 method or BIOMA software - refer to embedded Environment Agency guidance note above or updated version for suitable descriptive text, quoting standards where relevant. Otherwise, as an approximation (and in lieu of any more accurate metrics which may be developed in future), the measured or estimated biogenic fraction by net calorific value can be assumed to be the same as the biogenic CO2 fraction of the total CO2 emissions from the plant.
A22: Comments:

Sheet Residue Quality
A1: =+'Cover Page'!$B$29 -> Annual Performance Report 2023 | E1: =+'Cover Page'!$B$33 -> Hull Energy Production Facility
A3: Residue Quality Monitoring Requirements
A5: Summary of monitoring undertaken and compliance
A6: Monthly IBA and APCr testing conducted throught the year, excluding May when the plant was offline. Full hazard testing undertaken by Socotec on IBA resulting in compliance as non-hazardous throughout 2023
A13: Commentary on any specific events
A14: Date & Event | C14: Description
A27: Residue Quality Monitoring Results
A28: Parameter (unit) | C28: Limit | D28: Normal Operation
D29: Bottom ash | F29: APC Residues
A30: Loss on Ignition (average %) | C30: <5% | D30: 0.73
A31: Total Organic Carbon (average %) | C31: <3% | D31: 0.95
A32: No. of Assessments Undertaken | C32: --- | D32: 8 | F32: 5
A33: No. of Hazardous Results | C33: --- | D33: 0
A35: Comments :
A36: Due to issues with plant run time no Residue Quality Monitoring Results could be collected durign certain periods.

Sheet Water
A1: =+'Cover Page'!$B$29 -> Annual Performance Report 2023 | E1: =+'Cover Page'!$B$33 -> Hull Energy Production Facility
A3: Emissions to Water
A5: Summary of monitoring undertaken and compliance
A6: N/A
A13: Commentary on any specific events
A14: Date & Event | C14: Description
A22: Emissions to Water / Sewer
A23: Parameter | D23: Monitoring Frequency | F23: Limit | G23: Target | H23: Max. | I23: Average

Sheet Air (periodic)
A1: =+'Cover Page'!$B$29 -> Annual Performance Report 2023 | E1: =+'Cover Page'!$B$33 -> Hull Energy Production Facility
A3: Emissions to Air (periodically monitored)
A5: Summary of monitoring undertaken, standards used and compliance | M5: Notes:
A6: Testing was undertaken in March (Q1) but was unable to be completed and as such some testing dates fall into April (Q2). The permit variation requiring testing of polybrominated dibenzo-dioxins and furans and nitrous oxide was issued following the completion of this testing, as such these parameters have not been monitored during this period. Site has only been partially operational during Q3 and Q4. Therefore no third party monitoring results have been able to be taken. | M6: Template may require adjustment for any bespoke monitoring requirements of permit.
A9: Results of emissions to air that are periodically monitored
A10: Substance | C10: Ref. Period | D10: Emission Limit Value | F10: Average | M10: User to add additional tables as necessary, depending on whether quarterly or bi-annual reporting is required for the compliance year
F11: A1 | G11: A2 | H11: A3 | I11: A4 | J11: A5
A12: Hydrogen fluoride | C12: 1 hr | D12: 2 mg/m3
A13: Cd and Th and their compounds | C13: 6-8hrs | D13: 0.05 mg/m3 | F13: 0.00092
A14: Hg and its compounds | C14: 6-8hrs | D14: 0.05 mg/m3 | F14: 0.0004
A15: Sb, As, Pb, Cr, Co, Cu, Mn, Ni, V and their compounds | C15: 6-8hrs | D15: 0.5 mg/m3 | F15: 0.03
A16: Dioxins & Furans (I-TEQ) | C16: 6-8hrs | D16: 0.1 ng/m3 | F16: 0.0687
A17: PCBs (WHO-TEQ Humans / Mammals) | C17: 6-8hrs | D17: None set ng/m3 | F17: 0.01774
A18: PCBs (WHO-TEQ Fish) | C18: 6-8hrs | D18: None set ng/m3 | F18: 7.3e-05
A19: PCBs (WHO-TEQ Birds) | C19: 6-8hrs | D19: None set ng/m3 | F19: 0.02488
A20: Dioxins & Furans (WHO-TEQ Humans / Mammals) | C20: 6-8hrs | D20: None set ng/m3 | F20: 0.0612
A21: Dioxins & Furans (WHO-TEQ Fish) | C21: 6-8hrs | D21: None set ng/m3 | F21: 0.0713
A22: Dioxins & Furans (WHO-TEQ Birds) | C22: 6-8hrs | D22: None set ng/m3 | F22: 0.1164
A23: Anthanthrene | C23: 6-8hrs | D23: None set µg/m3 | F23: 2.48
A24: Benzo(a)anthracene | C24: 6-8hrs | D24: None set µg/m3 | F24: 0.01
A25: Benzo(a)pyrene | C25: 6-8hrs | D25: None set µg/m3 | F25: 0.01
A26: Benzo(b)fluoranthene | C26: 6-8hrs | D26: None set µg/m3 | F26: 0
A27: Benzo(b)naptho(2,1-d) thiophene | C27: 6-8hrs | D27: None set µg/m3 | F27: 0.002
A28: Benzo(c)phenanthrene | C28: 6-8hrs | D28: None set µg/m3 | F28: 0.004
A29: Benzo(ghi)perylene | C29: 6-8hrs | D29: None set µg/m3 | F29: 0
A30: Benzo(k)fluoranthene | C30: 6-8hrs | D30: None set µg/m3 | F30: 0.002
A31: Cholanthrene | C31: 6-8hrs | D31: None set µg/m3 | F31: 0.002
A32: Chrysene | C32: 6-8hrs | D32: None set µg/m3 | F32: 0.012
A33: Cyclopenta(cd)pyrene | C33: 6-8hrs | D33: None set µg/m3 | F33: 0.002
A34: Dibenzo(ai)pyrene | C34: 6-8hrs | D34: None set µg/m3 | F34: 0.002
A35: Dibenzo(ah)anthracene | C35: 6-8hrs | D35: None set µg/m3 | F35: 0.002
A36: Fluoranthene | C36: 6-8hrs | D36: None set µg/m3 | F36: 0.223
A37: Indeno(123-cd) pyrene | C37: 6-8hrs | D37: None set µg/m3 | F37: 0.002
A38: Naphthalene | C38: 6-8hrs | D38: None set µg/m3 | F38: 0.262
A39: Comments :
A40: .

Sheet Air (CEMS)
A1: =+'Cover Page'!$B$29 -> Annual Performance Report 2023 | I1: =+'Cover Page'!$B$33 -> Hull Energy Production Facility
A3: Emissions to Air (continously monitored)
P4: Notes:
A5: Summary of monitoring undertaken, standards used and compliance | P5: Template may require adjustment for any bespoke monitoring requirements of permit
P6: Report to 2 decimal places, i.e. xx.xx%
A11: Results of emissions to air that are continuously monitored (maximum and average values for each line)
A12: Substance | B12: Reference Period | C12: Emission Limit Value | D12: A1 | F12: A2 | H12: A3 | J12: A4 | L12: A5
D13: Max. | E13: Avg. | F13: Max. | G13: Avg. | H13: Max. | I13: Avg. | J13: Max. | K13: Avg. | L13: Max. | M13: Avg.
A14: Oxides of nitrogen | B14: Daily mean | C14: 200 mg/m3 | D14: 264 | E14: 158
B15: ½ hourly mean | C15: 400 mg/m3 | D15: 364 | E15: 167
A16: Particulates | B16: Daily mean | C16: 10 mg/m3 | D16: 3 | E16: 0.9
B17: ½ hourly mean | C17: 30 mg/m3 | D17: 12 | E17: 0.8
A18: Total Organic Carbon | B18: Daily mean | C18: 10 mg/m3 | D18: 3 | E18: 0.5
B19: ½ hourly mean | C19: 20 mg/m3 | D19: 12 | E19: 0.22
A20: Hydrogen chloride | B20: Daily mean | C20: 10 mg/m3 | D20: 34 | E20: 7.6
B21: ½ hourly mean | C21: 60 mg/m3 | D21: 248 | E21: 7.6
A22: Sulphur dioxide | B22: Daily mean | C22: 50 mg/m3 | D22: 10 | E22: 6.1
B23: ½ hourly mean | C23: 200 mg/m3 | D23: 17 | E23: 5.4
A24: Carbon monoxide | B24: Daily mean | C24: 50 mg/m3 | D24: 204 | E24: 16.4
B25: ½ hourly mean * | C25: 100 mg/m3 * | D25: 329 | E25: 53.5
B26: 95%ile 10-min avg * | C26: 150 mg/m3 * | D26: 141 | E26: 83.4
A27: Ammonia | B27: Daily mean | C27: No limit set | D27: 11 | E27: 2.2
A28: * = delete or amend as appropriate
A29: Comments :

Sheet HCl
A1: =+'Cover Page'!$B$29 -> Annual Performance Report 2023 | E1: =+'Cover Page'!$B$33 -> Hull Energy Production Facility
A3: Monitoring of Hydrogen Chloride emissions | D3: Whole Installation | G3: See Notes in Cell Q3 | J3: =+A3 -> Monitoring of Hydrogen Chloride emissions | N3: Per Combustion Line | Q3: Notes:
Q4: User to add logic to complete Whole installation, Table A5:G18. From the data in Per Combustion Line, Table J6:O79, subject to No. of lines installed
A5: mg/Nm3 | B5: 1/2 Hourly Reference Periods | E5: Daily Reference Periods
A6: =+'Cover Page'!C39 -> 2023 | B6: 1/2 hourly HCl ELV | C6: Monthly 1/2 hourly mean | D6: Highest 1/2 hourly maximum | E6: Daily HCl ELV | F6: Monthly daily mean | G6: Highest daily maximum | J6: =+A6 -> 2023 | K6: mg/Nm3 | L6: Monthly 1/2 hourly mean | M6: Monthly 1/2 hourly maximum | N6: Monthly daily mean | O6: Monthly daily maximum
A7: Jan | B7: 60 | C7: 8 | D7: 31 | E7: 10 | F7: 7.7 | G7: 17 | J7: A1 | K7: Jan
A8: Feb | B8: 60 | C8: 8 | D8: 69 | E8: 10 | F8: 8.5 | G8: 28 | K8: Feb
A9: Mar | B9: 60 | C9: 7 | D9: 62 | E9: 10 | F9: 7.5 | G9: 22 | K9: Mar | Q9: Whole Installation table A5:G18:
A10: Apr | B10: 60 | C10: 6 | D10: 18 | E10: 10 | F10: 5.8 | G10: 7 | K10: Apr | Q10: Mean: for 1/2 hourly and daily periods calculate mean of values across all operational combustion lines for the month
A11: May | B11: 60 | C11: N/A | D11: N/A | E11: 10 | F11: N/A | G11: N/A | K11: May
A12: Jun | B12: 60 | C12: 6 | D12: 64 | E12: 10 | F12: 6.1 | G12: 9 | K12: Jun
A13: Jul | B13: 60 | C13: 8 | D13: 248 | E13: 10 | F13: 8.5 | G13: 34 | K13: Jul | Q13: Maximum: for 1/2 hourly and daily periods use the highest value across all operational combustion lines for the month
A14: Aug | B14: 60 | C14: 9 | D14: 49 | E14: 10 | F14: 9.3 | G14: 12 | K14: Aug
A15: Sep | B15: 60 | C15: 9 | D15: 160 | E15: 10 | F15: 8.75 | G15: 19 | K15: Sep
A16: Oct | B16: 60 | C16: 8 | D16: 61 | E16: 10 | F16: 7.4 | G16: 9 | K16: Oct
A17: Nov | B17: 60 | C17: 8.3 | D17: 36 | E17: 10 | F17: 8.3 | G17: 29 | K17: Nov
A18: Dec | B18: 60 | C18: 6 | D18: 10 | E18: 10 | F18: 5.6 | G18: 7 | K18: Dec
K19: Annual | L19: =AVERAGE(L7:L18) ->  | M19: =MAX(M7:M18) -> 0 | N19: =AVERAGE(N7:N18) ->  | O19: =MAX(O7:O18) -> 0
J21: =+A6 -> 2023 | K21: mg/Nm3 | L21: Monthly 1/2 hourly mean | M21: Monthly 1/2 hourly maximum | N21: Monthly daily mean | O21: Monthly daily maximum
J22: A2 | K22: Jan
K23: Feb
K24: Mar
K25: Apr
K26: May
K27: Jun
K28: Jul
K29: Aug
K30: Sep
K31: Oct
K32: Nov
K33: Dec
K34: Annual | L34: =AVERAGE(L22:L33) ->  | M34: =MAX(M22:M33) -> 0 | N34: =AVERAGE(N22:N33) ->  | O34: =MAX(O22:O33) -> 0
J36: =+A6 -> 2023 | K36: mg/Nm3 | L36: Monthly 1/2 hourly mean | M36: Monthly 1/2 hourly maximum | N36: Monthly daily mean | O36: Monthly daily maximum
J37: A3 | K37: Jan
K38: Feb
K39: Mar
K40: Apr
K41: May
K42: Jun
K43: Jul
K44: Aug
K45: Sep
K46: Oct
K47: Nov
A48: Comments : | K48: Dec
K49: Annual | L49: =AVERAGE(L37:L48) ->  | M49: =MAX(M37:M48) -> 0 | N49: =AVERAGE(N37:N48) ->  | O49: =MAX(O37:O48) -> 0
J51: =+A6 -> 2023 | K51: mg/Nm3 | L51: Monthly 1/2 hourly mean | M51: Monthly 1/2 hourly maximum | N51: Monthly daily mean | O51: Monthly daily maximum
J52: A4 | K52: Jan
K53: Feb
K54: Mar
K55: Apr
K56: May
K57: Jun
K58: Jul
K59: Aug
K60: Sep
K61: Oct
K62: Nov
K63: Dec
K64: Annual | L64: =AVERAGE(L52:L63) ->  | M64: =MAX(M52:M63) -> 0 | N64: =AVERAGE(N52:N63) ->  | O64: =MAX(O52:O63) -> 0
J66: =+A6 -> 2023 | K66: mg/Nm3 | L66: Monthly 1/2 hourly mean | M66: Monthly 1/2 hourly maximum | N66: Monthly daily mean | O66: Monthly daily maximum
J67: A5 | K67: Jan
K68: Feb
K69: Mar
K70: Apr
K71: May
K72: Jun
K73: Jul
K74: Aug
K75: Sep
K76: Oct
K77: Nov
K78: Dec
K79: Annual | L79: =AVERAGE(L67:L78) ->  | M79: =MAX(M67:M78) -> 0 | N79: =AVERAGE(N67:N78) ->  | O79: =MAX(O67:O78) -> 0

Sheet SO2
A1: =+'Cover Page'!$B$29 -> Annual Performance Report 2023 | E1: =+'Cover Page'!$B$33 -> Hull Energy Production Facility
A3: Monitoring of Sulphur dioxide emissions | D3: Whole Installation | G3: See Notes in Cell Q3 | J3: =+A3 -> Monitoring of Sulphur dioxide emissions | N3: Per Combustion Line | Q3: Notes:
Q4: User to add logic to complete Whole installation, Table A5:G18. From the data in Per Combustion Line, Table J6:O79, subject to No. of lines installed
A5: mg/Nm3 | B5: 1/2 Hourly Reference Periods | E5: Daily Reference Periods
A6: =+'Cover Page'!C39 -> 2023 | B6: 1/2 hourly SO2 ELV | C6: Monthly 1/2 hourly mean | D6: Highest 1/2 hourly maximum | E6: Daily SO2 ELV | F6: Monthly daily mean | G6: Highest daily maximum | J6: =+A6 -> 2023 | K6: mg/Nm3 | L6: Monthly 1/2 hourly mean | M6: Monthly 1/2 hourly maximum | N6: Monthly daily mean | O6: Monthly daily maximum
A7: Jan | B7: 200 | C7: 3 | D7: 44 | E7: 50 | F7: 3.8 | G7: 8 | J7: A1 | K7: Jan
A8: Feb | B8: 200 | C8: 8 | D8: 11 | E8: 50 | F8: 7.4 | G8: 9 | K8: Feb
A9: Mar | B9: 200 | C9: 7 | D9: 10 | E9: 50 | F9: 7.1 | G9: 8 | K9: Mar | Q9: Whole Installation table A5:G18:
A10: Apr | B10: 200 | C10: 2 | D10: 9 | E10: 50 | F10: 1.8 | G10: 5 | K10: Apr | Q10: Mean: for 1/2 hourly and daily periods calculate mean of values across all operational combustion lines for the month
A11: May | B11: 200 | C11: N/A | D11: N/A | E11: 50 | F11: N/A | G11: N/A | K11: May
A12: Jun | B12: 200 | C12: 8 | D12: 17 | E12: 50 | F12: 7.7 | G12: 9 | K12: Jun
A13: Jul | B13: 200 | C13: 1.9 | D13: 10 | E13: 50 | F13: 8.5 | G13: 8 | K13: Jul | Q13: Maximum: for 1/2 hourly and daily periods use the highest value across all operational combustion lines for the month
A14: Aug | B14: 200 | C14: 0 | D14: 0 | E14: 50 | F14: 0 | G14: 0 | K14: Aug
A15: Sep | B15: 200 | C15: 7.2 | D15: 14 | E15: 50 | F15: 7.4 | G15: 9 | K15: Sep
A16: Oct | B16: 200 | C16: 8 | D16: 12 | E16: 50 | F16: 8.1 | G16: 10 | K16: Oct
A17: Nov | B17: 200 | C17: 7.2 | D17: 10 | E17: 50 | F17: 7.2 | G17: 8 | K17: Nov
A18: Dec | B18: 200 | C18: 8 | D18: 12 | E18: 50 | F18: 8 | G18: 10 | K18: Dec
K19: Annual | L19: =AVERAGE(L7:L18) ->  | M19: =MAX(M7:M18) -> 0 | N19: =AVERAGE(N7:N18) ->  | O19: =MAX(O7:O18) -> 0
J21: =+A6 -> 2023 | K21: mg/Nm3 | L21: Monthly 1/2 hourly mean | M21: Monthly 1/2 hourly maximum | N21: Monthly daily mean | O21: Monthly daily maximum
J22: A2 | K22: Jan
K23: Feb
K24: Mar
K25: Apr
K26: May
K27: Jun
K28: Jul
K29: Aug
K30: Sep
K31: Oct
K32: Nov
K33: Dec
K34: Annual | L34: =AVERAGE(L22:L33) ->  | M34: =MAX(M22:M33) -> 0 | N34: =AVERAGE(N22:N33) ->  | O34: =MAX(O22:O33) -> 0
J36: =+A6 -> 2023 | K36: mg/Nm3 | L36: Monthly 1/2 hourly mean | M36: Monthly 1/2 hourly maximum | N36: Monthly daily mean | O36: Monthly daily maximum
J37: A3 | K37: Jan
K38: Feb
K39: Mar
K40: Apr
K41: May
K42: Jun
K43: Jul
K44: Aug
K45: Sep
K46: Oct
K47: Nov
A48: Comments : | K48: Dec
K49: Annual | L49: =AVERAGE(L37:L48) ->  | M49: =MAX(M37:M48) -> 0 | N49: =AVERAGE(N37:N48) ->  | O49: =MAX(O37:O48) -> 0
J51: =+A6 -> 2023 | K51: mg/Nm3 | L51: Monthly 1/2 hourly mean | M51: Monthly 1/2 hourly maximum | N51: Monthly daily mean | O51: Monthly daily maximum
J52: A4 | K52: Jan
K53: Feb
K54: Mar
K55: Apr
K56: May
K57: Jun
K58: Jul
K59: Aug
K60: Sep
K61: Oct
K62: Nov
K63: Dec
K64: Annual | L64: =AVERAGE(L52:L63) ->  | M64: =MAX(M52:M63) -> 0 | N64: =AVERAGE(N52:N63) ->  | O64: =MAX(O52:O63) -> 0
J66: =+A6 -> 2023 | K66: mg/Nm3 | L66: Monthly 1/2 hourly mean | M66: Monthly 1/2 hourly maximum | N66: Monthly daily mean | O66: Monthly daily maximum
J67: A5 | K67: Jan
K68: Feb
K69: Mar
K70: Apr
K71: May
K72: Jun
K73: Jul
K74: Aug
K75: Sep
K76: Oct
K77: Nov
K78: Dec
K79: Annual | L79: =AVERAGE(L67:L78) ->  | M79: =MAX(M67:M78) -> 0 | N79: =AVERAGE(N67:N78) ->  | O79: =MAX(O67:O78) -> 0

Sheet NOx
A1: =+'Cover Page'!$B$29 -> Annual Performance Report 2023 | E1: =+'Cover Page'!$B$33 -> Hull Energy Production Facility
A3: Monitoring of Oxides of Nitrogen emissions | D3: Whole Installation | G3: See Notes in Cell Q3 | J3: =+A3 -> Monitoring of Oxides of Nitrogen emissions | N3: Per Combustion Line | Q3: Notes:
Q4: User to add logic to complete Whole installation, Table A5:G18. From the data in Per Combustion Line, Table J6:O79, subject to No. of lines installed
A5: mg/Nm3 | B5: 1/2 Hourly Reference Periods | E5: Daily Reference Periods
A6: =+'Cover Page'!C39 -> 2023 | B6: 1/2 hourly NOx ELV | C6: Monthly 1/2 hourly mean | D6: Highest 1/2 hourly maximum | E6: Daily NOx ELV | F6: Monthly daily mean | G6: Highest daily maximum | J6: =+A6 -> 2023 | K6: mg/Nm3 | L6: Monthly 1/2 hourly mean | M6: Monthly 1/2 hourly maximum | N6: Monthly daily mean | O6: Monthly daily maximum
A7: Jan | B7: 400 | C7: 100 | D7: 229 | E7: 200 | F7: 100 | G7: 156 | J7: A1 | K7: Jan
A8: Feb | B8: 400 | C8: 165 | D8: 300 | E8: 200 | F8: 165 | G8: 217 | K8: Feb
A9: Mar | B9: 400 | C9: 176 | D9: 364 | E9: 200 | F9: 176 | G9: 238 | K9: Mar | Q9: Whole Installation table A5:G18:
A10: Apr | B10: 400 | C10: 168 | D10: 323 | E10: 200 | F10: 168 | G10: 192 | K10: Apr | Q10: Mean: for 1/2 hourly and daily periods calculate mean of values across all operational combustion lines for the month
A11: May | B11: 400 | C11: N/A | D11: N/A | E11: 200 | F11: N/A | G11: N/A | K11: May
A12: Jun | B12: 400 | C12: 177 | D12: 360 | E12: 200 | F12: 177 | G12: 217 | K12: Jun
A13: Jul | B13: 400 | C13: 178 | D13: 364 | E13: 200 | F13: 177 | G13: 261 | K13: Jul | Q13: Maximum: for 1/2 hourly and daily periods use the highest value across all operational combustion lines for the month
A14: Aug | B14: 400 | C14: 151 | D14: 194 | E14: 200 | F14: 151 | G14: 169 | K14: Aug
A15: Sep | B15: 400 | C15: 162 | D15: 312 | E15: 200 | F15: 163 | G15: 264 | K15: Sep
A16: Oct | B16: 400 | C16: 268 | D16: 220 | E16: 200 | F16: 168 | G16: 204 | K16: Oct
A17: Nov | B17: 400 | C17: 157 | D17: 253 | E17: 200 | F17: 157 | G17: 204 | K17: Nov
A18: Dec | B18: 400 | C18: 138 | D18: 267 | E18: 200 | F18: 138 | G18: 262 | K18: Dec
K19: Annual | L19: =AVERAGE(L7:L18) ->  | M19: =MAX(M7:M18) -> 0 | N19: =AVERAGE(N7:N18) ->  | O19: =MAX(O7:O18) -> 0
J21: =+A6 -> 2023 | K21: mg/Nm3 | L21: Monthly 1/2 hourly mean | M21: Monthly 1/2 hourly maximum | N21: Monthly daily mean | O21: Monthly daily maximum
J22: A2 | K22: Jan
K23: Feb
K24: Mar
K25: Apr
K26: May
K27: Jun
K28: Jul
K29: Aug
K30: Sep
K31: Oct
K32: Nov
K33: Dec
K34: Annual | L34: =AVERAGE(L22:L33) ->  | M34: =MAX(M22:M33) -> 0 | N34: =AVERAGE(N22:N33) ->  | O34: =MAX(O22:O33) -> 0
J36: =+A6 -> 2023 | K36: mg/Nm3 | L36: Monthly 1/2 hourly mean | M36: Monthly 1/2 hourly maximum | N36: Monthly daily mean | O36: Monthly daily maximum
J37: A3 | K37: Jan
K38: Feb
K39: Mar
K40: Apr
K41: May
K42: Jun
K43: Jul
K44: Aug
K45: Sep
K46: Oct
K47: Nov
A48: Comments : | K48: Dec
K49: Annual | L49: =AVERAGE(L37:L48) ->  | M49: =MAX(M37:M48) -> 0 | N49: =AVERAGE(N37:N48) ->  | O49: =MAX(O37:O48) -> 0
J51: =+A6 -> 2023 | K51: mg/Nm3 | L51: Monthly 1/2 hourly mean | M51: Monthly 1/2 hourly maximum | N51: Monthly daily mean | O51: Monthly daily maximum
J52: A4 | K52: Jan
K53: Feb
K54: Mar
K55: Apr
K56: May
K57: Jun
K58: Jul
K59: Aug
K60: Sep
K61: Oct
K62: Nov
K63: Dec
K64: Annual | L64: =AVERAGE(L52:L63) ->  | M64: =MAX(M52:M63) -> 0 | N64: =AVERAGE(N52:N63) ->  | O64: =MAX(O52:O63) -> 0
J66: =+A6 -> 2023 | K66: mg/Nm3 | L66: Monthly 1/2 hourly mean | M66: Monthly 1/2 hourly maximum | N66: Monthly daily mean | O66: Monthly daily maximum
J67: A5 | K67: Jan
K68: Feb
K69: Mar
K70: Apr
K71: May
K72: Jun
K73: Jul
K74: Aug
K75: Sep
K76: Oct
K77: Nov
K78: Dec
K79: Annual | L79: =AVERAGE(L67:L78) ->  | M79: =MAX(M67:M78) -> 0 | N79: =AVERAGE(N67:N78) ->  | O79: =MAX(O67:O78) -> 0

Sheet TOC
A1: =+'Cover Page'!$B$29 -> Annual Performance Report 2023 | E1: =+'Cover Page'!$B$33 -> Hull Energy Production Facility
A3: Monitoring of Total organic carbon emissions | D3: Whole Installation | G3: See Notes in Cell Q3 | J3: =+A3 -> Monitoring of Total organic carbon emissions | N3: Per Combustion Line | Q3: Notes:
Q4: User to add logic to complete Whole installation, Table A5:G18. From the data in Per Combustion Line, Table J6:O79, subject to No. of lines installed
A5: mg/Nm3 | B5: 1/2 Hourly Reference Periods | E5: Daily Reference Periods
A6: =+'Cover Page'!C39 -> 2023 | B6: 1/2 hourly TOC ELV | C6: Monthly 1/2 hourly mean | D6: Highest 1/2 hourly maximum | E6: Daily TOC ELV | F6: Monthly daily mean | G6: Highest daily maximum | J6: =+A6 -> 2023 | K6: mg/Nm3 | L6: Monthly 1/2 hourly mean | M6: Monthly 1/2 hourly maximum | N6: Monthly daily mean | O6: Monthly daily maximum
A7: Jan | B7: 20 | C7: 1 | D7: 11 | E7: 10 | F7: 1 | G7: 2 | J7: A1 | K7: Jan
A8: Feb | B8: 20 | C8: 0.16 | D8: 12 | E8: 10 | F8: 0.16 | G8: 1 | K8: Feb
A9: Mar | B9: 20 | C9: 0 | D9: 6 | E9: 10 | F9: 0 | G9: 0 | K9: Mar | Q9: Whole Installation table A5:G18:
A10: Apr | B10: 20 | C10: 0 | D10: 0 | E10: 10 | F10: 0 | G10: 0 | K10: Apr | Q10: Mean: for 1/2 hourly and daily periods calculate mean of values across all operational combustion lines for the month
A11: May | B11: 20 | C11: N/A | D11: N/A | E11: 10 | F11: N/A | G11: N/A | K11: May
A12: Jun | B12: 20 | C12: 0.8 | D12: 12 | E12: 10 | F12: 0.8 | G12: 3 | K12: Jun
A13: Jul | B13: 20 | C13: 0 | D13: 4 | E13: 10 | F13: 0 | G13: 0 | K13: Jul | Q13: Maximum: for 1/2 hourly and daily periods use the highest value across all operational combustion lines for the month
A14: Aug | B14: 20 | C14: 0 | D14: 0 | E14: 10 | F14: 0 | G14: 0 | K14: Aug
A15: Sep | B15: 20 | C15: 0 | D15: 4 | E15: 10 | F15: 0 | G15: 0 | K15: Sep
A16: Oct | B16: 20 | C16: 0 | D16: 3 | E16: 10 | F16: 0 | G16: 0 | K16: Oct
A17: Nov | B17: 20 | C17: 0.3 | D17: 3 | E17: 10 | F17: 0.3 | G17: 3 | K17: Nov
A18: Dec | B18: 20 | C18: 0.1 | D18: 3 | E18: 10 | F18: 0.1 | G18: 1 | K18: Dec
K19: Annual | L19: =AVERAGE(L7:L18) ->  | M19: =MAX(M7:M18) -> 0 | N19: =AVERAGE(N7:N18) ->  | O19: =MAX(O7:O18) -> 0
J21: =+A6 -> 2023 | K21: mg/Nm3 | L21: Monthly 1/2 hourly mean | M21: Monthly 1/2 hourly maximum | N21: Monthly daily mean | O21: Monthly daily maximum
J22: A2 | K22: Jan
K23: Feb
K24: Mar
K25: Apr
K26: May
K27: Jun
K28: Jul
K29: Aug
K30: Sep
K31: Oct
K32: Nov
K33: Dec
K34: Annual | L34: =AVERAGE(L22:L33) ->  | M34: =MAX(M22:M33) -> 0 | N34: =AVERAGE(N22:N33) ->  | O34: =MAX(O22:O33) -> 0
J36: =+A6 -> 2023 | K36: mg/Nm3 | L36: Monthly 1/2 hourly mean | M36: Monthly 1/2 hourly maximum | N36: Monthly daily mean | O36: Monthly daily maximum
J37: A3 | K37: Jan
K38: Feb
K39: Mar
K40: Apr
K41: May
K42: Jun
K43: Jul
K44: Aug
K45: Sep
K46: Oct
K47: Nov
A48: Comments : | K48: Dec
K49: Annual | L49: =AVERAGE(L37:L48) ->  | M49: =MAX(M37:M48) -> 0 | N49: =AVERAGE(N37:N48) ->  | O49: =MAX(O37:O48) -> 0
J51: =+A6 -> 2023 | K51: mg/Nm3 | L51: Monthly 1/2 hourly mean | M51: Monthly 1/2 hourly maximum | N51: Monthly daily mean | O51: Monthly daily maximum
J52: A4 | K52: Jan
K53: Feb
K54: Mar
K55: Apr
K56: May
K57: Jun
K58: Jul
K59: Aug
K60: Sep
K61: Oct
K62: Nov
K63: Dec
K64: Annual | L64: =AVERAGE(L52:L63) ->  | M64: =MAX(M52:M63) -> 0 | N64: =AVERAGE(N52:N63) ->  | O64: =MAX(O52:O63) -> 0
J66: =+A6 -> 2023 | K66: mg/Nm3 | L66: Monthly 1/2 hourly mean | M66: Monthly 1/2 hourly maximum | N66: Monthly daily mean | O66: Monthly daily maximum
J67: A5 | K67: Jan
K68: Feb
K69: Mar
K70: Apr
K71: May
K72: Jun
K73: Jul
K74: Aug
K75: Sep
K76: Oct
K77: Nov
K78: Dec
K79: Annual | L79: =AVERAGE(L67:L78) ->  | M79: =MAX(M67:M78) -> 0 | N79: =AVERAGE(N67:N78) ->  | O79: =MAX(O67:O78) -> 0

Sheet Particulates
A1: =+'Cover Page'!$B$29 -> Annual Performance Report 2023 | E1: =+'Cover Page'!$B$33 -> Hull Energy Production Facility
A3: Monitoring of Particulate matter emissions | D3: Whole Installation | G3: See Notes in Cell Q3 | J3: =+A3 -> Monitoring of Particulate matter emissions | N3: Per Combustion Line | Q3: Notes:
Q4: User to add logic to complete Whole installation, Table A5:G18. From the data in Per Combustion Line, Table J6:O79, subject to No. of lines installed
A5: mg/Nm3 | B5: 1/2 Hourly Reference Periods | E5: Daily Reference Periods
A6: =+'Cover Page'!C39 -> 2023 | B6: 1/2 hourly PM ELV | C6: Monthly 1/2 hourly mean | D6: Highest 1/2 hourly maximum | E6: Daily PM ELV | F6: Monthly daily mean | G6: Highest daily maximum | J6: =+A6 -> 2023 | K6: mg/Nm3 | L6: Monthly 1/2 hourly mean | M6: Monthly 1/2 hourly maximum | N6: Monthly daily mean | O6: Monthly daily maximum
A7: Jan | B7: 30 | C7: 0 | D7: 0 | E7: 10 | F7: 0 | G7: 0 | J7: A1 | K7: Jan
A8: Feb | B8: 30 | C8: 0 | D8: 0 | E8: 10 | F8: 0 | G8: 0 | K8: Feb
A9: Mar | B9: 30 | C9: 1.4 | D9: 12 | E9: 10 | F9: 1.4 | G9: 3 | K9: Mar | Q9: Whole Installation table A5:G18:
A10: Apr | B10: 30 | C10: 1 | D10: 1 | E10: 10 | F10: 1 | G10: 1 | K10: Apr | Q10: Mean: for 1/2 hourly and daily periods calculate mean of values across all operational combustion lines for the month
A11: May | B11: 30 | C11: N/A | D11: N/A | E11: 10 | F11: N/A | G11: N/A | K11: May
A12: Jun | B12: 30 | C12: 1 | D12: 3 | E12: 10 | F12: 1 | G12: 1 | K12: Jun
A13: Jul | B13: 30 | C13: 1 | D13: 3 | E13: 10 | F13: 1 | G13: 2 | K13: Jul | Q13: Maximum: for 1/2 hourly and daily periods use the highest value across all operational combustion lines for the month
A14: Aug | B14: 30 | C14: 1 | D14: 2 | E14: 10 | F14: 1 | G14: 1 | K14: Aug
A15: Sep | B15: 30 | C15: 1 | D15: 2 | E15: 10 | F15: 1 | G15: 1 | K15: Sep
A16: Oct | B16: 30 | C16: 1 | D16: 1 | E16: 10 | F16: 1 | G16: 1 | K16: Oct
A17: Nov | B17: 30 | C17: 1 | D17: 1 | E17: 10 | F17: 1 | G17: 1 | K17: Nov
A18: Dec | B18: 30 | C18: 1 | D18: 4 | E18: 10 | F18: 1 | G18: 2 | K18: Dec
K19: Annual | L19: =AVERAGE(L7:L18) ->  | M19: =MAX(M7:M18) -> 0 | N19: =AVERAGE(N7:N18) ->  | O19: =MAX(O7:O18) -> 0
J21: =+A6 -> 2023 | K21: mg/Nm3 | L21: Monthly 1/2 hourly mean | M21: Monthly 1/2 hourly maximum | N21: Monthly daily mean | O21: Monthly daily maximum
J22: A2 | K22: Jan
K23: Feb
K24: Mar
K25: Apr
K26: May
K27: Jun
K28: Jul
K29: Aug
K30: Sep
K31: Oct
K32: Nov
K33: Dec
K34: Annual | L34: =AVERAGE(L22:L33) ->  | M34: =MAX(M22:M33) -> 0 | N34: =AVERAGE(N22:N33) ->  | O34: =MAX(O22:O33) -> 0
J36: =+A6 -> 2023 | K36: mg/Nm3 | L36: Monthly 1/2 hourly mean | M36: Monthly 1/2 hourly maximum | N36: Monthly daily mean | O36: Monthly daily maximum
J37: A3 | K37: Jan
K38: Feb
K39: Mar
K40: Apr
K41: May
K42: Jun
K43: Jul
K44: Aug
K45: Sep
K46: Oct
K47: Nov
A48: Comments : | K48: Dec
K49: Annual | L49: =AVERAGE(L37:L48) ->  | M49: =MAX(M37:M48) -> 0 | N49: =AVERAGE(N37:N48) ->  | O49: =MAX(O37:O48) -> 0
J51: =+A6 -> 2023 | K51: mg/Nm3 | L51: Monthly 1/2 hourly mean | M51: Monthly 1/2 hourly maximum | N51: Monthly daily mean | O51: Monthly daily maximum
J52: A4 | K52: Jan
K53: Feb
K54: Mar
K55: Apr
K56: May
K57: Jun
K58: Jul
K59: Aug
K60: Sep
K61: Oct
K62: Nov
K63: Dec
K64: Annual | L64: =AVERAGE(L52:L63) ->  | M64: =MAX(M52:M63) -> 0 | N64: =AVERAGE(N52:N63) ->  | O64: =MAX(O52:O63) -> 0
J66: =+A6 -> 2023 | K66: mg/Nm3 | L66: Monthly 1/2 hourly mean | M66: Monthly 1/2 hourly maximum | N66: Monthly daily mean | O66: Monthly daily maximum
J67: A5 | K67: Jan
K68: Feb
K69: Mar
K70: Apr
K71: May
K72: Jun
K73: Jul
K74: Aug
K75: Sep
K76: Oct
K77: Nov
K78: Dec
K79: Annual | L79: =AVERAGE(L67:L78) ->  | M79: =MAX(M67:M78) -> 0 | N79: =AVERAGE(N67:N78) ->  | O79: =MAX(O67:O78) -> 0

Sheet CO 0.5hourly
A1: =+'Cover Page'!$B$29 -> Annual Performance Report 2023 | E1: =+'Cover Page'!$B$33 -> Hull Energy Production Facility
A3: Monitoring of Carbon Monoxide (half hourly) | D3: Whole Installation | G3: See Notes in Cell Q3 | J3: =+A3 -> Monitoring of Carbon Monoxide (half hourly) | N3: Per Combustion Line | Q3: Notes:
Q4: User to add logic to complete Whole installation, Table A5:G18. From the data in Per Combustion Line, Table J6:O79, subject to No. of lines installed
A5: mg/Nm3 | B5: 1/2 Hourly Reference Periods | E5: Daily Reference Periods
A6: =+'Cover Page'!C39 -> 2023 | B6: 1/2 hourly CO ELV | C6: Monthly 1/2 hourly mean | D6: Highest 1/2 hourly maximum | E6: Daily CO ELV | F6: Monthly daily mean | G6: Highest daily maximum | J6: =+A6 -> 2023 | K6: mg/Nm3 | L6: Monthly 1/2 hourly mean | M6: Monthly 1/2 hourly maximum | N6: Monthly daily mean | O6: Monthly daily maximum
A7: Jan | B7: 100 | C7: 31 | D7: 329 | E7: 50 | F7: 30.7 | G7: 46 | J7: A1 | K7: Jan
A8: Feb | B8: =+B7 -> 100 | C8: 19 | D8: 270 | E8: =+E7 -> 50 | F8: 18.6 | G8: 63 | K8: Feb
A9: Mar | B9: =+B8 -> 100 | C9: 21 | D9: 157 | E9: =+E8 -> 50 | F9: 20.8 | G9: 30 | K9: Mar | Q9: Whole Installation table A5:G18:
A10: Apr | B10: 100 | C10: 18 | D10: 286 | E10: 50 | F10: 18.6 | G10: 53 | K10: Apr | Q10: Mean: for 1/2 hourly and daily periods calculate mean of values across all operational combustion lines for the month
A11: May | B11: 100 | C11: N/A | D11: N/A | E11: 50 | F11: N/A | G11: N/A | K11: May
A12: Jun | B12: 100 | C12: 12 | D12: 104 | E12: 50 | F12: 11.8 | G12: 27 | K12: Jun
A13: Jul | B13: 100 | C13: 11 | D13: 131 | E13: 50 | F13: 11.1 | G13: 24 | K13: Jul | Q13: Maximum: for 1/2 hourly and daily periods use the highest value across all operational combustion lines for the month
A14: Aug | B14: 100 | C14: 5 | D14: 31 | E14: 50 | F14: 5 | G14: 8 | K14: Aug
A15: Sep | B15: 100 | C15: 8 | D15: 210 | E15: 50 | F15: 7.9 | G15: 28 | K15: Sep
A16: Oct | B16: 100 | C16: 168 | D16: 220 | E16: 50 | F16: 20.2 | G16: 204 | K16: Oct
A17: Nov | B17: 100 | C17: 157 | D17: 253 | E17: 50 | F17: 15.69 | G17: 204 | K17: Nov
A18: Dec | B18: 100 | C18: 138 | D18: 267 | E18: 50 | F18: 19 | G18: 161 | K18: Dec
K19: Annual | L19: =AVERAGE(L7:L18) ->  | M19: =MAX(M7:M18) -> 0 | N19: =AVERAGE(N7:N18) ->  | O19: =MAX(O7:O18) -> 0
J21: =+A6 -> 2023 | K21: mg/Nm3 | L21: Monthly 1/2 hourly mean | M21: Monthly 1/2 hourly maximum | N21: Monthly daily mean | O21: Monthly daily maximum
J22: A2 | K22: Jan
K23: Feb
K24: Mar
K25: Apr
K26: May
K27: Jun
K28: Jul
K29: Aug
K30: Sep
K31: Oct
K32: Nov
K33: Dec
K34: Annual | L34: =AVERAGE(L22:L33) ->  | M34: =MAX(M22:M33) -> 0 | N34: =AVERAGE(N22:N33) ->  | O34: =MAX(O22:O33) -> 0
J36: =+A6 -> 2023 | K36: mg/Nm3 | L36: Monthly 1/2 hourly mean | M36: Monthly 1/2 hourly maximum | N36: Monthly daily mean | O36: Monthly daily maximum
J37: A3 | K37: Jan
K38: Feb
K39: Mar
K40: Apr
K41: May
K42: Jun
K43: Jul
K44: Aug
K45: Sep
K46: Oct
K47: Nov
A48: Comments : | K48: Dec
K49: Annual | L49: =AVERAGE(L37:L48) ->  | M49: =MAX(M37:M48) -> 0 | N49: =AVERAGE(N37:N48) ->  | O49: =MAX(O37:O48) -> 0
J51: =+A6 -> 2023 | K51: mg/Nm3 | L51: Monthly 1/2 hourly mean | M51: Monthly 1/2 hourly maximum | N51: Monthly daily mean | O51: Monthly daily maximum
J52: A4 | K52: Jan
K53: Feb
K54: Mar
K55: Apr
K56: May
K57: Jun
K58: Jul
K59: Aug
K60: Sep
K61: Oct
K62: Nov
K63: Dec
K64: Annual | L64: =AVERAGE(L52:L63) ->  | M64: =MAX(M52:M63) -> 0 | N64: =AVERAGE(N52:N63) ->  | O64: =MAX(O52:O63) -> 0
J66: =+A6 -> 2023 | K66: mg/Nm3 | L66: Monthly 1/2 hourly mean | M66: Monthly 1/2 hourly maximum | N66: Monthly daily mean | O66: Monthly daily maximum
J67: A5 | K67: Jan
K68: Feb
K69: Mar
K70: Apr
K71: May
K72: Jun
K73: Jul
K74: Aug
K75: Sep
K76: Oct
K77: Nov
K78: Dec
K79: Annual | L79: =AVERAGE(L67:L78) ->  | M79: =MAX(M67:M78) -> 0 | N79: =AVERAGE(N67:N78) ->  | O79: =MAX(O67:O78) -> 0

Sheet CO 95% 10 min
A1: =+'Cover Page'!$B$29 -> Annual Performance Report 2023 | E1: =+'Cover Page'!$B$33 -> Hull Energy Production Facility
A3: Monitoring of Carbon Monoxide (10-minute avg) | E3: Whole Installation | H3: See Notes in Cell S3 | J3: =+A3 -> Monitoring of Carbon Monoxide (10-minute avg) | O3: Per Combustion Line | Q3: Notes: | S3: Notes:
S4: User to add logic to complete Whole installation, Table A5:H18. From the data in Per Combustion Line, Table K6:Q79, subject to No. of lines installed
A5: mg/Nm3 | B5: 10-minute Reference Periods | F5: Daily Reference Periods
A6: =+'Cover Page'!C39 -> 2023 | B6: 95%ile 10-min avg CO ELV | C6: 95%ile 10-min avg maximum | D6: Monthly CO 10-min avg mean | E6: 10-min avg maximum | F6: Daily CO ELV | G6: Monthly daily mean | H6: Highest daily maximum | K6: =+A6 -> 2023 | L6: mg/Nm3 | M6: 95%ile 10-min avg maximum | N6: Monthly CO 10-min avg mean | O6: 10-min avg maximum | P6: Monthly daily mean | Q6: Monthly daily maximum
A7: Jan | B7: 150 | C7: N/A | D7: N/A | E7: N/A | F7: 50 | G7: N/A | H7: N/A | K7: A1 | L7: Jan
A8: Feb | B8: =+B7 -> 150 | C8: N/A | D8: N/A | E8: N/A | F8: =+F7 -> 50 | G8: N/A | H8: N/A | L8: Feb
A9: Mar | B9: =+B8 -> 150 | C9: N/A | D9: N/A | E9: N/A | F9: =+F8 -> 50 | G9: N/A | H9: N/A | L9: Mar | S9: Whole Installation table A5:H18:
A10: Apr | B10: 150 | C10: N/A | D10: N/A | E10: N/A | F10: 50 | G10: N/A | H10: N/A | L10: Apr | S10: Mean: for 10-min and daily periods use average of all operational combustion lines.
A11: May | B11: 150 | C11: N/A | D11: N/A | E11: N/A | F11: 50 | G11: N/A | H11: N/A | L11: May
A12: Jun | B12: 150 | C12: 136 | E12: 2288 | F12: 50 | G12: 22.6 | H12: 47 | L12: Jun
A13: Jul | B13: 150 | C13: 99 | E13: 1810 | F13: 50 | G13: 16 | H13: 40 | L13: Jul | S13: Maximum: for 10-min and daily periods use the highest of all operational combustion lines in any month.
A14: Aug | B14: 150 | C14: 14 | E14: 184 | F14: 50 | G14: 5.75 | H14: 10 | L14: Aug
A15: Sep | B15: 150 | C15: 64 | E15: 590 | F15: 50 | G15: 8.6 | H15: 27 | L15: Sep
A16: Oct | B16: 150 | C16: 79 | E16: 1508 | F16: 50 | G16: 20 | H16: 33 | L16: Oct
A17: Nov | B17: 150 | C17: 51 | E17: 3108 | F17: 50 | G17: 15.6 | H17: 47 | L17: Nov
A18: Dec | B18: 150 | C18: 141 | E18: 1323 | F18: 50 | G18: 19 | H18: 42 | L18: Dec
L19: Annual | M19: =AVERAGE(M7:M18) ->  | O19: =MAX(O7:O18) -> 0 | P19: =AVERAGE(P7:P18) ->  | Q19: =MAX(Q7:Q18) -> 0
K21: =+A6 -> 2023 | L21: mg/Nm3 | M21: 95%ile 10-min avg maximum | N21: Monthly CO 10-min avg mean | O21: 10-min avg maximum | P21: Monthly daily mean | Q21: Monthly daily maximum
K22: A2 | L22: Jan
L23: Feb
L24: Mar
L25: Apr
L26: May
L27: Jun
L28: Jul
L29: Aug
L30: Sep
L31: Oct
L32: Nov
L33: Dec
L34: Annual | M34: =AVERAGE(M22:M33) ->  | O34: =MAX(O22:O33) -> 0 | P34: =AVERAGE(P22:P33) ->  | Q34: =MAX(Q22:Q33) -> 0
K36: =+A6 -> 2023 | L36: mg/Nm3 | M36: 95%ile 10-min avg maximum | N36: Monthly CO 10-min avg mean | O36: 10-min avg maximum | P36: Monthly daily mean | Q36: Monthly daily maximum
K37: A3 | L37: Jan
L38: Feb
L39: Mar
L40: Apr
L41: May
L42: Jun
L43: Jul
L44: Aug
L45: Sep
L46: Oct
L47: Nov
A48: Comments : | L48: Dec
A49: Environment Agency explanatory note: The 10-minute average ELV is based on the “95th percentile”. In this case this means that 95% of the 10 minute averages in the relevant 24-hour period (i.e. 137) must be below 150 mg/Nm3, and 5% (i.e. 7) are allowed to be any value above 150 mg/Nm3. Whilst we expect operators to minimise CO emissions at all times, it is perfectly acceptable for the value of the maximum 10-minute average to be above 150 mg/Nm3, provided the 95th percentile ELV has been met for that period. The permit variation issued on 25th May needed for the CO 10 min average Therefore, CO 10 min CEMS data available since that time. Monthly CO 10-min average mean data not currently avaliable. | L49: Annual | M49: =AVERAGE(M37:M48) ->  | O49: =MAX(O37:O48) -> 0 | P49: =AVERAGE(P37:P48) ->  | Q49: =MAX(Q37:Q48) -> 0
K51: =+A6 -> 2023 | L51: mg/Nm3 | M51: 95%ile 10-min avg maximum | N51: Monthly CO 10-min avg mean | O51: 10-min avg maximum | P51: Monthly daily mean | Q51: Monthly daily maximum
K52: A4 | L52: Jan
L53: Feb
L54: Mar
L55: Apr
L56: May
L57: Jun
L58: Jul
L59: Aug
L60: Sep
L61: Oct
L62: Nov
L63: Dec
L64: Annual | M64: =AVERAGE(M52:M63) ->  | O64: =MAX(O52:O63) -> 0 | P64: =AVERAGE(P52:P63) ->  | Q64: =MAX(Q52:Q63) -> 0
K66: =+A6 -> 2023 | L66: mg/Nm3 | M66: 95%ile 10-min avg maximum | N66: Monthly CO 10-min avg mean | O66: 10-min avg maximum | P66: Monthly daily mean | Q66: Monthly daily maximum
K67: A5 | L67: Jan
L68: Feb
L69: Mar
L70: Apr
L71: May
L72: Jun
L73: Jul
L74: Aug
L75: Sep
L76: Oct
L77: Nov
L78: Dec
L79: Annual | M79: =AVERAGE(M67:M78) ->  | O79: =MAX(O67:O78) -> 0 | P79: =AVERAGE(P67:P78) ->  | Q79: =MAX(Q67:Q78) -> 0

Sheet NH3
A1: =+'Cover Page'!$B$29 -> Annual Performance Report 2023 | E1: =+'Cover Page'!$B$33 -> Hull Energy Production Facility
A3: Monitoring of Ammnonia emissions | D3: Whole Installation | G3: See Notes in Cell Q3 | J3: =+A3 -> Monitoring of Ammnonia emissions | N3: Per Combustion Line | Q3: Notes:
Q4: User to add logic to complete Whole installation, Table A5:G18. From the data in Per Combustion Line, Table J6:O79, subject to No. of lines installed
A5: mg/Nm3 | B5: 1/2 Hourly Reference Periods | E5: Daily Reference Periods
A6: =+'Cover Page'!C39 -> 2023 | B6: 1/2 hourly NH3 ELV | C6: Monthly 1/2 hourly mean | D6: Highest 1/2 hourly maximum | E6: Daily NH3 ELV | F6: Monthly daily mean | G6: Highest daily maximum | J6: =+A6 -> 2023 | K6: mg/Nm3 | L6: Monthly 1/2 hourly mean | M6: Monthly 1/2 hourly maximum | N6: Monthly daily mean | O6: Monthly daily maximum
A7: Jan | B7: 0 | C7: 1 | D7: 4 | E7: 10 | F7: 1.2 | G7: 2 | J7: A1 | K7: Jan
A8: Feb | B8: =+B7 -> 0 | C8: 2 | D8: 11 | E8: =+E7 -> 10 | F8: 2.1 | G8: 5 | K8: Feb
A9: Mar | B9: =+B8 -> 0 | C9: 2 | D9: 6 | E9: =+E8 -> 10 | F9: 1.9 | G9: 3 | K9: Mar | Q9: Whole Installation table A5:G18:
A10: Apr | B10: 0 | C10: 2 | D10: 11 | E10: 10 | F10: 2.3 | G10: 4 | K10: Apr | Q10: Mean: for 1/2 hourly and daily periods calculate mean of values across all operational combustion lines for the month
A11: May | B11: 0 | C11: N/A | D11: N/A | E11: 10 | F11: N/A | G11: N/A | K11: May
A12: Jun | B12: 0 | C12: 2 | D12: 12 | E12: 10 | F12: 1.8 | G12: 4 | K12: Jun
A13: Jul | B13: 0 | C13: 3 | D13: 15 | E13: 10 | F13: 3.4 | G13: 7 | K13: Jul | Q13: Maximum: for 1/2 hourly and daily periods use the highest value across all operational combustion lines for the month
A14: Aug | B14: 0 | C14: 3 | D14: 5 | E14: 10 | F14: 2.6 | G14: 4 | K14: Aug
A15: Sep | B15: 0 | C15: 3 | D15: 27 | E15: 10 | F15: 2.9 | G15: 11 | K15: Sep
A16: Oct | B16: 0 | C16: 2 | D16: 18 | E16: 10 | F16: 2 | G16: 5 | K16: Oct
A17: Nov | B17: 0 | C17: 1.2 | D17: 5 | E17: 10 | F17: 1.2 | G17: 2 | K17: Nov
A18: Dec | B18: 0 | C18: 2 | D18: 10 | E18: 10 | F18: 2.1 | G18: 3 | K18: Dec
K19: Annual | L19: =AVERAGE(L7:L18) ->  | M19: =MAX(M7:M18) -> 0 | N19: =AVERAGE(N7:N18) ->  | O19: =MAX(O7:O18) -> 0
J21: =+A6 -> 2023 | K21: mg/Nm3 | L21: Monthly 1/2 hourly mean | M21: Monthly 1/2 hourly maximum | N21: Monthly daily mean | O21: Monthly daily maximum
J22: A2 | K22: Jan
K23: Feb
K24: Mar
K25: Apr
K26: May
K27: Jun
K28: Jul
K29: Aug
K30: Sep
K31: Oct
K32: Nov
K33: Dec
K34: Annual | L34: =AVERAGE(L22:L33) ->  | M34: =MAX(M22:M33) -> 0 | N34: =AVERAGE(N22:N33) ->  | O34: =MAX(O22:O33) -> 0
J36: =+A6 -> 2023 | K36: mg/Nm3 | L36: Monthly 1/2 hourly mean | M36: Monthly 1/2 hourly maximum | N36: Monthly daily mean | O36: Monthly daily maximum
J37: A3 | K37: Jan
K38: Feb
K39: Mar
K40: Apr
K41: May
K42: Jun
K43: Jul
K44: Aug
K45: Sep
K46: Oct
K47: Nov
A48: Comments : | K48: Dec
A49: An indicated ELV value of zero in the table above means that no ammonia limit is set in the permit. | K49: Annual | L49: =AVERAGE(L37:L48) ->  | M49: =MAX(M37:M48) -> 0 | N49: =AVERAGE(N37:N48) ->  | O49: =MAX(O37:O48) -> 0
J51: =+A6 -> 2023 | K51: mg/Nm3 | L51: Monthly 1/2 hourly mean | M51: Monthly 1/2 hourly maximum | N51: Monthly daily mean | O51: Monthly daily maximum
J52: A4 | K52: Jan
K53: Feb
K54: Mar
K55: Apr
K56: May
K57: Jun
K58: Jul
K59: Aug
K60: Sep
K61: Oct
K62: Nov
K63: Dec
K64: Annual | L64: =AVERAGE(L52:L63) ->  | M64: =MAX(M52:M63) -> 0 | N64: =AVERAGE(N52:N63) ->  | O64: =MAX(O52:O63) -> 0
J66: =+A6 -> 2023 | K66: mg/Nm3 | L66: Monthly 1/2 hourly mean | M66: Monthly 1/2 hourly maximum | N66: Monthly daily mean | O66: Monthly daily maximum
J67: A5 | K67: Jan
K68: Feb
K69: Mar
K70: Apr
K71: May
K72: Jun
K73: Jul
K74: Aug
K75: Sep
K76: Oct
K77: Nov
K78: Dec
K79: Annual | L79: =AVERAGE(L67:L78) ->  | M79: =MAX(M67:M78) -> 0 | N79: =AVERAGE(N67:N78) ->  | O79: =MAX(O67:O78) -> 0
